fUST/lending_fUST_20251014
["ID","MTS","AMOUNT","RATE_DAILY","PERIOD"]
[391178002,1760408843575,-500.0,0.00020878,2]
[391178003,1760408843605,-500.0,0.00020878,2]
[391178004,1760408843636,-500.0,0.00020878,2]
[391178005,1760408843664,-500.0,0.00020878,2]
[391178006,1760408843695,-500.0,0.00020878,2]
[391178007,1760408843860,-303.30383616,0.00020878,2]
[391178008,1760408843890,-592.44061177,0.00020878,2]
[391178009,1760408843921,-606.9,0.00020878,2]
[391178010,1760408843952,-606.9,0.00020878,2]
[391178011,1760408843983,-606.9,0.00020878,2]
[391178012,1760408844013,-606.9,0.00020878,2]
[391178013,1760408844045,-606.9,0.00020878,2]
[391178014,1760408844074,-606.9,0.00020878,2]
[391178015,1760408844105,-318.82110414,0.00020878,2]
[391178016,1760408844241,-288.07889586,0.00020878,2]
[391178017,1760408844271,-606.9,0.00020878,2]
[391178018,1760408844300,-606.9,0.00020878,2]
[391178019,1760408844328,-606.9,0.00020878,2]
[391178020,1760408844356,-606.9,0.00020878,2]
[391178021,1760408844384,-606.9,0.00020878,2]
[391178022,1760408844410,-606.9,0.00020878,2]
[391178023,1760408844437,-606.9,0.00020878,2]
[391178024,1760408844472,-320.35220828,0.00020878,2]
[391178025,1760408844976,-286.54779172,0.00020878,2]
[391178026,1760408844986,-17.81392419,0.00020878,2]
[391178027,1760408845000,-589.08607581,0.00020878,2]
[391178028,1760408845010,-17.81392419,0.00020878,2]
[391178029,1760408845028,-589.08607581,0.00020878,2]
[391178030,1760408845037,-17.81392419,0.00020878,2]
[391178031,1760408845051,-488.27458413,0.00020878,2]
[391178032,1760408845061,-118.62541587,0.00020878,2]
[391178033,1760408845075,-488.27458413,0.00020878,2]
[391178034,1760408845084,-118.62541587,0.00020878,2]
[391178035,1760408845102,-488.27458413,0.00020878,2]
[391178036,1760408845111,-118.62541587,0.00020878,2]
[391178037,1760408845132,-488.27458413,0.00020878,2]
[391178038,1760408845141,-118.62541587,0.00020878,2]
[391178039,1760408861316,-5000.0,0.00020668,2]
[391178040,1760408861348,-0.01,0.00020877,2]
[391178041,1760408861490,-1199.99,0.00020877,2]
[391178042,1760408861517,-488.27458413,0.00020878,2]
[391178043,1760408861548,-606.9,0.00020878,2]
[391178044,1760408861575,-606.9,0.00020878,2]
[391178045,1760408861606,-607.09,0.00020878,2]
[391178046,1760408861635,-811.83083174,0.00020878,2]
[391178047,1760408861727,-1358.03916826,0.00020878,2]
[391178048,1760408861755,-2169.87,0.00020878,2]
[391178049,1760408861782,-774.32166348,0.00020878,2]
[391178050,1760408861834,-1395.54833652,0.00020878,2]
[391178051,1760408861862,-2169.87,0.00020878,2]
[391178052,1760408861890,-699.30332696,0.00020878,2]
[391178053,1760408861999,-1470.56667304,0.00020878,2]
[391178054,1760408862028,-2169.87,0.00020878,2]
[391178055,1760408862056,-549.26665392,0.00020878,2]
[391178056,1760408862116,-34.45085086,0.00020878,2]
[391178057,1760408862130,-1470.56667304,0.00020878,2]
[391178058,1760408862162,-115.58582218,0.00020878,2]
[391178059,1760408862191,-500.0,0.00020878,2]
[391178060,1760408862222,-2169.87,0.00020878,2]
[391178061,1760408862252,-500.0,0.00020878,2]
[391178062,1760408862281,-500.0,0.00020878,2]
[391178063,1760408862322,-259.22835564,0.00020878,2]
[391178064,1760408862408,-295.05582218,0.00020878,2]
[391178065,1760408862446,-1615.58582218,0.00020878,2]
[391178066,1760408862475,-500.0,0.00020878,2]
[391178067,1760408862506,-2169.87,0.00020878,2]
[391178068,1760408862533,-500.0,0.00020878,2]
[391178069,1760408862638,-1169.87,0.00020878,2]
[391178070,1760408862651,-1000.0,0.00020878,2]
[391178071,1760408862660,-500.0,0.00020878,2]
[391178072,1760408862671,-115.58582218,0.00020878,2]
[391178073,1760408862684,-500.0,0.00020878,2]
[391178074,1760408862697,-1554.28417782,0.00020878,2]
[391178075,1760408862706,-500.0,0.00020878,2]
[391178076,1760408862715,-115.58582218,0.00020878,2]
[391178077,1760408862728,-500.0,0.00020878,2]
[391178078,1760408862742,-429.09835564,0.00020878,2]
[391178079,1760408867347,24702.93016561,0.00018,2]
[391178080,1760408874700,2911.9,0.00019981,2]
[391178081,1760408879096,2763.45075141,0.00030765,60]
[391178082,1760408879263,-1125.18582218,0.00020878,2]
[391178083,1760408879291,-500.0,0.00020878,2]
[391178084,1760408879320,-2169.87,0.00020878,2]
[391178085,1760408879347,-500.0,0.00020878,2]
[391178086,1760408879391,-2169.87,0.00020878,2]
[391178087,1760408879419,-500.0,0.00020878,2]
[391178088,1760408879448,-2169.87,0.00020878,2]
[391178089,1760408879527,-500.0,0.00020878,2]
[391178090,1760408879561,-2169.87,0.00020878,2]
[391178091,1760408879588,-2169.87,0.00020878,2]
[391178092,1760408879712,-500.0,0.00020878,2]
[391178093,1760408879742,-500.0,0.00020878,2]
[391178094,1760408879771,-2169.87,0.00020878,2]
[391178095,1760408879934,-500.0,0.00020878,2]
[391178096,1760408879963,-490.4,0.00020878,2]
[391178097,1760408880057,-1679.47,0.00020878,2]
[391178098,1760408880084,-500.0,0.00020878,2]
[391178099,1760408880113,-2169.87,0.00020878,2]
[391178100,1760408880142,-500.0,0.00020878,2]
[391178101,1760408880295,-500.0,0.00020878,2]
[391178102,1760408880324,-2169.87,0.00020878,2]
[391178103,1760408880353,-500.0,0.00020878,2]
[391178104,1760408880382,-1490.4,0.00020878,2]
[391178105,1760408880697,-679.47,0.00020878,2]
[391178106,1760408880706,-500.0,0.00020878,2]
[391178107,1760408880715,-861.88835564,0.00020878,2]
[391178108,1760408880730,-500.0,0.00020878,2]
[391178109,1760408880743,-808.06164436,0.00020878,2]
[391178110,1760408880752,-500.0,0.00020878,2]
[391178111,1760408880761,-500.0,0.00020878,2]
[391178112,1760408880771,-361.80835564,0.00020878,2]
[391178113,1760408885131,-5000.0,0.00020669,2]
[391178114,1760408885170,-0.01,0.00020869,10]
[391178115,1760408885233,-700.65,0.00020869,10]
[391178116,1760408885263,-300.0,0.00020877,2]
[391178117,1760408885291,-500.0,0.00020878,2]
[391178118,1760408885319,-500.0,0.00020878,2]
[391178119,1760408885346,-500.0,0.00020878,2]
[391178120,1760408885371,-500.0,0.00020878,2]
[391178121,1760408885395,-500.0,0.00020878,2]
[391178122,1760408885426,-500.0,0.00020878,2]
[391178123,1760408885456,-500.0,0.00020878,2]
[391178124,1760408885487,-498.71,0.00020878,2]
[391178125,1760408885582,-1.29,0.00020878,2]
[391178126,1760408885612,-552.37213389,0.00020878,2]
[391178127,1760408885641,-500.0,0.00020878,2]
[391178128,1760408885669,-500.0,0.00020878,2]
[391178129,1760408885697,-500.0,0.00020878,2]
[391178130,1760408885724,-248.37963912,0.00020878,2]
[391178131,1760408885755,-500.0,0.00020878,2]
[391178132,1760408885787,-500.0,0.00020878,2]
[391178133,1760408885821,-500.0,0.00020878,2]
[391178134,1760408885853,-138.19164436,0.00020878,2]
[391178135,1760408885883,-500.0,0.00020878,2]
[391178136,1760408885915,-500.0,0.00020878,2]
[391178137,1760408886034,-500.0,0.00020878,2]
[391178138,1760408886064,-500.0,0.00020878,2]
[391178139,1760408886095,-500.0,0.00020878,2]
[391178140,1760408886124,-500.0,0.00020878,2]
[391178141,1760408886154,-500.0,0.00020878,2]
[391178142,1760408886183,-500.0,0.00020878,2]
[391178143,1760408886212,-500.0,0.00020878,2]
[391178144,1760408886242,-500.0,0.00020878,2]
[391178145,1760408886270,-500.0,0.00020878,2]
[391178146,1760408886298,-500.0,0.00020878,2]
[391178147,1760408886524,-500.0,0.00020878,2]
[391178148,1760408886556,-500.0,0.00020878,2]
[391178149,1760408886584,-500.0,0.00020878,2]
[391178150,1760408886613,-500.0,0.00020878,2]
[391178151,1760408886642,-500.0,0.00020878,2]
[391178152,1760408886670,-500.0,0.00020878,2]
[391178153,1760408886701,-500.0,0.00020878,2]
[391178154,1760408886729,-500.0,0.00020878,2]
[391178155,1760408886757,-500.0,0.00020878,2]
[391178156,1760408886786,-500.0,0.00020878,2]
[391178157,1760408886972,-500.0,0.00020878,2]
[391178158,1760408887002,-500.0,0.00020878,2]
[391178159,1760408887030,-500.0,0.00020878,2]
[391178160,1760408887059,-500.0,0.00020878,2]
[391178161,1760408887087,-500.0,0.00020878,2]
[391178162,1760408887116,-500.0,0.00020878,2]
[391178163,1760408887144,-500.0,0.00020878,2]
[391178164,1760408887173,-500.0,0.00020878,2]
[391178165,1760408887201,-500.0,0.00020878,2]
[391178166,1760408887229,-500.0,0.00020878,2]
[391178167,1760408887381,-191.7,0.00020878,2]
[391178168,1760408887408,-500.0,0.00020878,2]
[391178169,1760408887437,-500.0,0.00020878,2]
[391178170,1760408887464,-500.0,0.00020878,2]
[391178171,1760408887491,-292.11294727,0.00020878,2]
[391178172,1760408887517,-500.0,0.00020878,2]
[391178173,1760408887546,-500.0,0.00020878,2]
[391178174,1760408887573,-500.0,0.00020878,2]
[391178175,1760408887602,-501.01173492,0.00020878,2]
[391178176,1760408887631,-500.0,0.00020878,2]
[391178177,1760408887658,-507.07388326,0.00020878,2]
[391178178,1760408888293,-500.0,0.00020878,2]
[391178179,1760408888322,-609.49,0.00020878,2]
[391178180,1760408888351,-609.49,0.00020878,2]
[391178181,1760408888379,-609.49,0.00020878,2]
[391178182,1760408888406,-609.49,0.00020878,2]
[391178183,1760408888434,-609.49,0.00020878,2]
[391178184,1760408888571,-609.49,0.00020878,2]
[391178185,1760408888602,-609.49,0.00020878,2]
[391178186,1760408888719,-609.49,0.00020878,2]
[391178187,1760408888748,-609.49,0.00020878,2]
[391178188,1760408888778,-609.49,0.00020878,2]
[391178189,1760408888809,-609.49,0.00020878,2]
[391178190,1760408888839,-609.49,0.00020878,2]
[391178191,1760408888870,-609.49,0.00020878,2]
[391178192,1760408888900,-609.49,0.00020878,2]
[391178193,1760408888928,-609.49,0.00020878,2]
[391178194,1760408889026,-609.49,0.00020878,2]
[391178195,1760408889056,-609.49,0.00020878,2]
[391178196,1760408889085,-609.49,0.00020878,2]
[391178197,1760408889114,-609.49,0.00020878,2]
[391178198,1760408889142,-609.49,0.00020878,2]
[391178199,1760408889171,-609.49,0.00020878,2]
[391178200,1760408889198,-609.49,0.00020878,2]
[391178201,1760408889229,-609.49,0.00020878,2]
[391178202,1760408889476,-609.52,0.00020878,2]
[391178203,1760408889506,-500.0,0.00020878,2]
[391178204,1760408889533,-500.0,0.00020878,2]
[391178205,1760408889564,-500.0,0.00020878,2]
[391178206,1760408889593,-504.23907198,0.00020878,2]
[391178207,1760408889712,-5000.0,0.00020878,2]
[391178208,1760408890615,-915.41092802,0.00020878,2]
[391178209,1760408890653,-5000.0,0.00020878,2]
[391178210,1760408890666,-0.01,0.00020878,2]
[391178211,1760408890900,-10000.01,0.00020878,2]
[391178212,1760408890920,-10000.01,0.00020878,2]
[391178213,1760408890942,-10000.01,0.00020878,2]
[391178214,1760408890961,-10000.01,0.00020878,2]
[391178215,1760408890982,-4084.53907198,0.00020878,2]
[391178216,1760408890992,-500.0,0.00020878,2]
[391178217,1760408891001,-5415.47092802,0.00020879,2]
[391178218,1760408891016,-10000.01,0.00020879,2]
[391178219,1760408891029,-10000.01,0.00020879,2]
[391178220,1760408891042,-10000.01,0.00020879,2]
[391178221,1760408891236,-10000.01,0.00020879,2]
[391178222,1760408891359,-10000.01,0.00020879,2]
[391178223,1760408891494,-10000.01,0.00020879,2]
[391178224,1760408891602,-10000.01,0.00020879,2]
[391178225,1760408892153,151.0,0.000181,2]
[391178226,1760408893266,151.0,0.00018211,2]
[391178227,1760408893336,-10000.01,0.00020879,2]
[391178228,1760408893561,-10000.01,0.00020879,2]
[391178229,1760408894258,151.0,0.00018322,2]
[391178230,1760408895256,151.0,0.00018433,2]
[391178231,1760408895280,-10000.01,0.00020879,2]
[391178232,1760408895371,-10000.01,0.00020879,2]
[391178233,1760408895491,-10000.01,0.00020879,2]
[391178234,1760408895620,-10000.01,0.00020879,2]
[391178235,1760408895794,-4346.54417152,0.00020879,2]
[391178236,1760408895834,-1306.92165696,0.00020879,2]
[391178237,1760408895923,-10000.01,0.00020879,2]
[391178238,1760408896039,-10000.01,0.00020879,2]
[391178239,1760408896167,-10000.01,0.00020879,2]
[391178240,1760408896246,151.0,0.00018544,2]
[391178241,1760408897285,151.0,0.00018655,2]
[391178242,1760408897317,-4598.90265734,0.00020879,2]
[391178243,1760408897355,-802.20468532,0.00020881,3]
[391178244,1760408897439,500.0,0.00030765,60]
[391178245,1760408897455,-10000.01,0.00020881,3]
[391178246,1760408897668,500.0,0.00030765,60]
[391178247,1760408898516,151.0,0.00018766,2]
[391178248,1760408898757,1006.90729153,0.00015,2]
[391178249,1760408899640,151.0,0.00018877,2]
[391178250,1760408899662,-10000.01,0.00020881,3]
[391178251,1760408900487,151.0,0.00018988,2]
[391178252,1760408901346,-2129.57831833,0.00020881,3]
[391178253,1760408901374,-5740.85336334,0.00020881,3]
[391178254,1760408901448,-300.0,0.000209,2]
[391178255,1760408901481,-300.0,0.000209,2]
[391178256,1760408901514,-300.0,0.000209,2]
[391178257,1760408901546,-300.0,0.000209,2]
[391178258,1760408901582,-300.0,0.000209,2]
[391178259,1760408901618,-1176.21,0.00020933,2]
[391178260,1760408901676,151.0,0.000191,2]
[391178261,1760408901792,198.53414511,0.00030765,60]
[391178262,1760408901848,-4647.59,0.00020933,2]
[391178263,1760408903392,-627.45,0.00020878,2]
[391178264,1760408903423,-627.45,0.00020878,2]
[391178265,1760408903454,-627.45,0.00020878,2]
[391178266,1760408903483,-627.45,0.00020878,2]
[391178267,1760408903511,-627.45,0.00020878,2]
[391178268,1760408903540,-627.45,0.00020878,2]
[391178269,1760408903572,-627.45,0.00020878,2]
[391178270,1760408903681,-627.45,0.00020878,2]
[391178271,1760408903712,-1779.8933865,0.00020936,2]
[391178272,1760408903831,-5000.0,0.00020691,2]
[391178273,1760408903840,-627.45,0.00020878,2]
[391178274,1760408903851,-773.583227,0.00020936,2]
[391178275,1760408905051,286.22912962,0.0001,2]
[391178276,1760408909451,-627.45,0.00020878,2]
[391178277,1760408909480,-627.45,0.00020878,2]
[391178278,1760408909508,-627.45,0.00020878,2]
[391178279,1760408909537,-627.45,0.00020878,2]
[391178280,1760408909568,-627.45,0.00020878,2]
[391178281,1760408909597,-627.45,0.00020878,2]
[391178282,1760408909627,-500.0,0.00020878,2]
[391178283,1760408909657,-627.45,0.00020878,2]
[391178284,1760408909910,-500.0,0.00020878,2]
[391178285,1760408909939,-627.45,0.00020878,2]
[391178286,1760408909966,-500.0,0.00020878,2]
[391178287,1760408909998,-627.45,0.00020878,2]
[391178288,1760408910027,-507.07388326,0.00020878,2]
[391178289,1760408910059,-627.45,0.00020878,2]
[391178290,1760408910087,-627.45,0.00020878,2]
[391178291,1760408910116,-627.45,0.00020878,2]
[391178292,1760408910147,-83.91223348,0.00020878,2]
[391178293,1760408910239,-543.53776652,0.00020878,2]
[391178294,1760408910269,-627.45,0.00020878,2]
[391178295,1760408910298,-627.48136547,0.00020878,2]
[391178296,1760408911255,6403.07173602,0.0002,20]
[391178297,1760408911276,4811.28280966,0.0002,20]
[391178298,1760408911520,5000.0,0.00020669,2]
[391178299,1760408911722,188.72719034,0.0002,2]
[391178300,1760408911758,178.55672043,0.0002,2]
[391178301,1760408911993,9821.45327957,0.0002,2]
[391178302,1760408912014,10000.01,0.0002,2]
[391178303,1760408912036,10000.01,0.0002,2]
[391178304,1760408912059,178.52672043,0.0002,2]
[391178305,1760408912099,9821.48327957,0.00015,2]
[391178306,1760408912121,10000.01,0.00015,2]
[391178307,1760408912141,10000.01,0.00015,2]
[391178308,1760408912170,41430.68849537,0.00015,2]
[391178309,1760408912290,514.54608905,0.00030765,60]
[391178310,1760408913006,34367.6182857,0.00019,2]
[391178311,1760408913512,500.0,0.00020878,2]
[391178312,1760408913840,1097.75529111,0.00030765,120]
[391178313,1760408913867,500.0,0.00020878,2]
[391178314,1760408914086,500.0,0.00020878,2]
[391178315,1760408914342,500.0,0.00020878,2]
[391178316,1760408914581,2004.29207448,0.00018,2]
[391178317,1760408914614,500.0,0.00020878,2]
[391178318,1760408914803,210.20280839,0.00030765,120]
[391178319,1760408914832,500.0,0.00020878,2]
[391178320,1760408915038,500.0,0.00020878,2]
[391178321,1760408915089,500.0,0.00020878,2]
[391178322,1760408915327,500.0,0.00020878,2]
[391178323,1760408915430,500.0,0.00020878,2]
[391178324,1760408915456,500.0,0.00020878,2]
[391178325,1760408915547,500.0,0.00020878,2]
[391178326,1760408915664,959.31740139,0.0002,120]
[391178327,1760408915693,500.0,0.00020878,2]
[391178328,1760408915789,500.0,0.00020878,2]
[391178329,1760408915917,500.0,0.00020878,2]
[391178330,1760408915991,495.71792552,0.00020878,2]
[391178331,1760408916134,301.99999964,0.00030765,120]
[391178332,1760408917074,202.656923,0.00030765,60]
[391178333,1760408917222,10000.01,0.0002,2]
[391178334,1760408917510,-4.28207448,0.00020878,2]
[391178335,1760408917538,-500.0,0.00020878,2]
[391178336,1760408917569,-500.0,0.00020878,2]
[391178337,1760408917598,-500.0,0.00020878,2]
[391178338,1760408917626,-500.0,0.00020878,2]
[391178339,1760408917654,-500.0,0.00020878,2]
[391178340,1760408917683,-500.0,0.00020878,2]
[391178341,1760408917712,-500.0,0.00020878,2]
[391178342,1760408917740,-500.0,0.00020878,2]
[391178343,1760408917770,-500.0,0.00020878,2]
[391178344,1760408917799,-491.44585104,0.00020878,2]
[391178345,1760408917941,-8.55414896,0.00020878,2]
[391178346,1760408917970,-500.0,0.00020878,2]
[391178347,1760408918000,-500.0,0.00020878,2]
[391178348,1760408918030,-500.0,0.00020878,2]
[391178349,1760408918064,-361.21211318,0.00020878,2]
[391178350,1760408918093,-500.0,0.00020878,2]
[391178351,1760408918124,-500.0,0.00020878,2]
[391178352,1760408918154,-500.0,0.00020878,2]
[391178353,1760408918182,-392.5,0.00020878,2]
[391178354,1760408918362,500.0,0.00020878,2]
[391178355,1760408918518,500.0,0.00020878,2]
[391178356,1760408918867,500.0,0.00020878,2]
[391178357,1760408918922,500.0,0.00020878,2]
[391178358,1760408918975,475.47747572,0.00020878,2]
[391178359,1760408919000,80.88252428,0.00020878,2]
[391178364,1760408920023,-4411.74,0.00020936,2]
[391178365,1760408920541,500.0,0.00020878,2]
[391178366,1760408920785,500.0,0.00020878,2]
[391178367,1760408920877,176.53,0.0001,2]
[391178368,1760408920898,1638.96015806,0.0001,2]
[391178369,1760408921017,500.0,0.00020878,2]
[391178370,1760408921277,500.0,0.00020878,2]
[391178371,1760408921506,500.0,0.00020878,2]
[391178372,1760408921772,500.0,0.00020878,2]
[391178373,1760408922048,500.0,0.00020878,2]
[391178374,1760408922374,500.0,0.00020878,2]
[391178375,1760408922577,4063.97323895,0.0002,2]
[391178377,1760408922685,426.44,0.00020878,2]
[391178378,1760408926036,500.0,0.00020878,2]
[391178379,1760408926073,220.32167012,0.00020878,2]
[391178380,1760408926110,150.31493287,0.00020878,2]
[391178381,1760408926133,349.68506713,0.00020878,2]
[391178382,1760408926159,500.0,0.00020878,2]
[391178383,1760408926189,500.0,0.00020878,2]
[391178384,1760408926359,500.0,0.00020878,2]
[391178385,1760408926421,500.0,0.00020878,2]
[391178386,1760408926448,500.0,0.00020878,2]
[391178387,1760408926475,464.48516645,0.00020878,2]
[391178388,1760408926660,500.0,0.00020878,2]
[391178389,1760408926734,5000.0,0.00020936,2]
[391178390,1760408926791,500.0,0.00020878,2]
[391178391,1760408927018,500.0,0.00020878,2]
[391178392,1760408927137,185.83976642,0.00020878,2]
[391178393,1760408927157,384.13023358,0.00020878,2]
[391178394,1760408927189,500.0,0.00020878,2]
[391178395,1760408927229,412.38817164,0.00020878,2]
[391178396,1760408927255,500.0,0.00020878,2]
[391178397,1760408927390,569.97,0.00020878,2]
[391178398,1760408927509,500.0,0.00020878,2]
[391178399,1760408927620,569.97,0.00020878,2]
[391178400,1760408927826,500.0,0.00020878,2]
[391178401,1760408927851,500.0,0.00020878,2]
[391178402,1760408927878,569.97,0.00020878,2]
[391178403,1760408928096,500.0,0.00020878,2]
[391178404,1760408928123,569.97,0.00020878,2]
[391178405,1760408928340,569.97,0.00020878,2]
[391178406,1760408928370,500.0,0.00020878,2]
[391178407,1760408928573,569.97,0.00020878,2]
[391178408,1760408928620,500.0,0.00020878,2]
[391178409,1760408928846,569.97,0.00020878,2]
[391178410,1760408928889,500.0,0.00020878,2]
[391178411,1760408929101,569.97,0.00020878,2]
[391178412,1760408929150,143.73159478,0.00020878,2]
[391178413,1760408929171,356.26840522,0.00020878,2]
[391178414,1760408929335,569.97,0.00020878,2]
[391178415,1760408929401,500.0,0.00020878,2]
[391178416,1760408929569,569.97,0.00020878,2]
[391178417,1760408929657,500.0,0.00020878,2]
[391178418,1760408929829,569.97,0.00020878,2]
[391178419,1760408929951,500.0,0.00020878,2]
[391178420,1760408930300,569.97,0.00020878,2]
[391178421,1760408930333,500.0,0.00020878,2]
[391178422,1760408930360,569.97,0.00020878,2]
[391178423,1760408930443,500.0,0.00020878,2]
[391178424,1760408930525,569.97,0.00020878,2]
[391178425,1760408930703,500.0,0.00020878,2]
[391178426,1760408930756,569.97,0.00020878,2]
[391178427,1760408930960,500.0,0.00020878,2]
[391178428,1760408930987,569.97,0.00020878,2]
[391178429,1760408931215,500.0,0.00020878,2]
[391178430,1760408931263,569.97,0.00020878,2]
[391178431,1760408931475,500.0,0.00020878,2]
[391178432,1760408931532,14.01159478,0.00020878,2]
[391178433,1760408931557,555.95840522,0.00020878,2]
[391178435,1760408931741,409.66605052,0.00020878,2]
[391178437,1760408931819,569.97,0.00020878,2]
[391178438,1760408931985,1296.615051,0.00013699,2]
[391178440,1760408932186,1296.615051,0.00020187,2]
[391178441,1760408932238,569.97,0.00020878,2]
[391178443,1760408932497,569.97,0.00020878,2]
[391178444,1760408932733,569.97,0.00020878,2]
[391178445,1760408933006,570.20538005,0.00020878,2]
[391178446,1760408934574,5000.0,0.00020936,2]
[391178447,1760408938265,162.7430397,0.00020879,2]
[391178449,1760408946844,9837.2669603,0.00020878,3]
[391178450,1760408946865,10000.01,0.00020878,3]
[391178451,1760408946886,8835.37940669,0.00020878,3]
[391178452,1760408947899,500.0,0.00020878,2]
[391178453,1760408948139,500.0,0.00020878,2]
[391178454,1760408948365,164.63059331,0.00020878,2]
[391178455,1760408948403,335.36940669,0.00020878,2]
[391178456,1760408948623,500.0,0.00020878,2]
[391178457,1760408948867,500.0,0.00020878,2]
[391178458,1760408949090,500.0,0.00020878,2]
[391178459,1760408949321,500.0,0.00020878,2]
[391178460,1760408949562,500.0,0.00020878,2]
[391178461,1760408949883,500.0,0.00020878,2]
[391178462,1760408950048,515.91,0.00020878,2]
[391178463,1760408950262,5000.0,0.00020953,2]
[391178464,1760408953325,500.0,0.00020878,2]
[391178465,1760408953603,500.0,0.00020878,2]
[391178466,1760408953849,500.0,0.00020878,2]
[391178467,1760408954144,470.31,0.00020878,2]
[391178468,1760408954804,164.0,8.4e-07,2]
[391178469,1760408955072,2800.72,0.00019945,2]
[391178470,1760408955472,5064.98,0.00020895,2]
[391178471,1760408955496,536.45,0.00020895,2]
[391178472,1760408955849,164.0,8.4e-07,2]
[391178473,1760408958266,4577.85460355,0.00020953,2]
[391178474,1760408961994,500.0,0.00020878,2]
[391178475,1760408962229,500.0,0.00020878,2]
[391178476,1760408962451,500.0,0.00020878,2]
[391178477,1760408962678,500.0,0.00020878,2]
[391178478,1760408962957,500.0,0.00020878,2]
[391178479,1760408963189,500.0,0.00020878,2]
[391178480,1760408963415,500.0,0.00020878,2]
[391178481,1760408963644,500.0,0.00020878,2]
[391178482,1760408963879,500.0,0.00020878,2]
[391178483,1760408964111,500.0,0.00020878,2]
[391178484,1760408964343,422.15539645,0.00020878,2]
[391178485,1760408964365,77.84460355,0.00020878,2]
[391178486,1760408964564,500.0,0.00020878,2]
[391178487,1760408964940,500.0,0.00020878,2]
[391178488,1760408965035,500.0,0.00020878,2]
[391178489,1760408965264,500.0,0.00020878,2]
[391178490,1760408965332,500.0,0.00020878,2]
[391178491,1760408965481,500.0,0.00020878,2]
[391178492,1760408965573,500.0,0.00020878,2]
[391178493,1760408965746,310.97,0.00020878,2]
[391178494,1760408965799,500.0,0.00020878,2]
[391178495,1760408966065,500.0,0.00020878,2]
[391178496,1760408966328,500.0,0.00020878,2]
[391178497,1760408966606,500.0,0.00020878,2]
[391178498,1760408966865,500.0,0.00020878,2]
[391178499,1760408967110,500.0,0.00020878,2]
[391178500,1760408967375,574.61,0.00020878,2]
[391178501,1760408969644,1741.4,0.00020878,2]
[391178502,1760408969881,1741.4,0.00020878,2]
[391178503,1760408970158,1741.4,0.00020878,2]
[391178504,1760408970401,1701.2,0.00020878,2]
[391178505,1760408970424,40.2,0.00020878,2]
[391178506,1760408970678,1741.4,0.00020878,2]
[391178507,1760408970918,1741.4,0.00020878,2]
[391178508,1760408970946,500.0,0.00020878,2]
[391178509,1760408971161,500.0,0.00020878,2]
[391178510,1760408971187,1741.4,0.00020878,2]
[391178511,1760408971287,500.0,0.00020878,2]